[Event "Titled Tuesday Blitz August 1 Late 2023"]
[White "Pesotskiy, Mikhail"]
[Black "Toropov, Pavel"]
[WhiteFideId "34164453"]
[BlackFideId "24129178"]
[WhiteElo "2440"]
[BlackElo "2568"]
[Result "0-1"]
[Round "11"]
[TimeControl "180+1"]
[Date "2023.08.01"]
[WhiteClock "0:00:00"]
[BlackClock "0:00:08"]
[Board "44"]

1. d4 {[%clk 0:03:00]}  d5 {[%clk 0:03:00]} 2. c4 {[%clk 0:02:57]}  c6 {[%clk 0:03:00]} 3. Nf3 {[%clk 0:02:54]}  Nf6 {[%clk 0:03:01]} 4. Nbd2 {[%clk 0:02:52]}  Bf5 {[%clk 0:02:58]} 5. Nh4 {[%clk 0:02:46]}  Be6 {[%clk 0:02:46]} 6. e3 {[%clk 0:02:46]}  g6 {[%clk 0:02:45]} 7. b3 {[%clk 0:02:46]}  Bg7 {[%clk 0:02:45]} 8. Bb2 {[%clk 0:02:47]}  O-O {[%clk 0:02:44]} 9. Bd3 {[%clk 0:02:48]}  Nbd7 {[%clk 0:02:25]} 10. O-O {[%clk 0:02:46]}  c5 {[%clk 0:02:25]} 11. Nhf3 {[%clk 0:02:29]}  Bg4 {[%clk 0:01:57]} 12. h3 {[%clk 0:02:25]}  Bxf3 {[%clk 0:01:56]} 13. Nxf3 {[%clk 0:02:26]}  e6 {[%clk 0:01:51]} 14. Rc1 {[%clk 0:02:24]}  Rc8 {[%clk 0:01:50]} 15. Qe2 {[%clk 0:02:20]}  Qe7 {[%clk 0:01:25]} 16. dxc5 {[%clk 0:01:44]}  Nxc5 {[%clk 0:01:23]} 17. Bb1 {[%clk 0:01:44]}  dxc4 {[%clk 0:01:16]} 18. Rxc4 {[%clk 0:01:45]}  Ncd7 {[%clk 0:01:01]} 19. Rfc1 {[%clk 0:01:41]}  Nb6 {[%clk 0:01:01]} 20. Rxc8 {[%clk 0:01:38]}  Rxc8 {[%clk 0:01:02]} 21. Rxc8+ {[%clk 0:01:38]}  Nxc8 {[%clk 0:01:02]} 22. Qc4 {[%clk 0:01:39]}  Nd6 {[%clk 0:00:49]} 23. Qc5 {[%clk 0:01:27]}  Nd7 {[%clk 0:00:41]} 24. Qa3 {[%clk 0:01:18]}  Nc8 {[%clk 0:00:30]} 25. Qxe7 {[%clk 0:01:11]}  Nxe7 {[%clk 0:00:29]} 26. Bxg7 {[%clk 0:01:06]}  Kxg7 {[%clk 0:00:30]} 27. Kf1 {[%clk 0:01:06]}  Kf6 {[%clk 0:00:22]} 28. Ke2 {[%clk 0:01:01]}  e5 {[%clk 0:00:22]} 29. Nd2 {[%clk 0:00:58]}  Ke6 {[%clk 0:00:22]} 30. Bd3 {[%clk 0:00:49]}  Nb6 {[%clk 0:00:14]} 31. Nc4 {[%clk 0:00:46]}  Nec8 {[%clk 0:00:08]} 32. Kd2 {[%clk 0:00:40]}  f6 {[%clk 0:00:05]} 33. h4 {[%clk 0:00:29]}  Nd5 {[%clk 0:00:05]} 34. a3 {[%clk 0:00:28]}  Nd6 {[%clk 0:00:05]} 35. Nxd6 {[%clk 0:00:25]}  Kxd6 {[%clk 0:00:06]} 36. g3 {[%clk 0:00:25]}  Ne7 {[%clk 0:00:05]} 37. Be4 {[%clk 0:00:25]}  b6 {[%clk 0:00:05]} 38. Kd3 {[%clk 0:00:25]}  a5 {[%clk 0:00:06]} 39. b4 {[%clk 0:00:18]}  axb4 {[%clk 0:00:05]} 40. axb4 {[%clk 0:00:19]}  f5 {[%clk 0:00:03]} 41. Bg2 {[%clk 0:00:19]}  e4+ {[%clk 0:00:03]} 42. Kc4 {[%clk 0:00:18]}  Nc6 {[%clk 0:00:04]} 43. Kb5 {[%clk 0:00:17]}  Kc7 {[%clk 0:00:04]} 44. Bf1 {[%clk 0:00:17]}  Ne5 {[%clk 0:00:04]} 45. Be2 {[%clk 0:00:17]}  h6 {[%clk 0:00:04]} 46. Ka4 {[%clk 0:00:09]}  Nd3 {[%clk 0:00:05]} 47. Bxd3 {[%clk 0:00:09]}  exd3 {[%clk 0:00:05]} 48. Kb3 {[%clk 0:00:10]}  Kc6 {[%clk 0:00:06]} 49. Kc3 {[%clk 0:00:11]}  Kb5 {[%clk 0:00:07]} 50. f3 {[%clk 0:00:07]}  d2 {[%clk 0:00:06]} 51. Kxd2 {[%clk 0:00:08]}  Kxb4 {[%clk 0:00:07]} 52. Kd3 {[%clk 0:00:03]}  Kc5 {[%clk 0:00:08]} 53. e4 {[%clk 0:00:02]}  fxe4+ {[%clk 0:00:07]} 54. Kxe4 {[%clk 0:00:03]}  b5 {[%clk 0:00:08]} 55. f4 {[%clk 0:00:02]}  b4 {[%clk 0:00:08]} 56. Kd3 {[%clk 0:00:02]}  Kd5 {[%clk 0:00:08]} 57. g4 {[%clk 0:00:00]}  b3 {[%clk 0:00:08]} 0-1


[Site "https://www.chess.com"]

[Event "Titled Tuesday Blitz August 1 Late 2023"]
[White "KrokerGuy"]
[Black "Morefield, Jason"]
[BlackFideId "30920825"]
[WhiteElo "2458"]
[BlackElo "2673"]
[Result "0-1"]
[Round "11"]
[TimeControl "180+1"]
[Date "2023.08.01"]
[WhiteClock "0:00:00"]
[BlackClock "0:00:42"]
[Board "45"]

1. e4 {[%clk 0:03:00]}  d6 {[%clk 0:02:58]} 2. d4 {[%clk 0:03:01]}  Nf6 {[%clk 0:02:59]} 3. Nc3 {[%clk 0:03:01]}  g6 {[%clk 0:03:00]} 4. Be3 {[%clk 0:03:01]}  c6 {[%clk 0:03:00]} 5. Qd2 {[%clk 0:02:56]}  Nbd7 {[%clk 0:03:00]} 6. a4 {[%clk 0:02:54]}  Qa5 {[%clk 0:02:57]} 7. Nf3 {[%clk 0:02:52]}  e5 {[%clk 0:02:55]} 8. Bc4 {[%clk 0:02:47]}  Bg7 {[%clk 0:02:46]} 9. h3 {[%clk 0:02:44]}  O-O {[%clk 0:02:44]} 10. O-O {[%clk 0:02:40]}  exd4 {[%clk 0:02:44]} 11. Nxd4 {[%clk 0:02:12]}  Nc5 {[%clk 0:02:37]} 12. Nb3 {[%clk 0:01:54]}  Nxb3 {[%clk 0:02:33]} 13. Bxb3 {[%clk 0:01:55]}  Re8 {[%clk 0:02:10]} 14. f3 {[%clk 0:01:29]}  d5 {[%clk 0:01:47]} 15. exd5 {[%clk 0:01:29]}  cxd5 {[%clk 0:01:47]} 16. Rfe1 {[%clk 0:01:19]}  Be6 {[%clk 0:01:44]} 17. Bd4 {[%clk 0:01:16]}  Qc7 {[%clk 0:01:30]} 18. Be5 {[%clk 0:01:05]}  Ne4 {[%clk 0:01:26]} 19. fxe4 {[%clk 0:00:43]}  Bxe5 {[%clk 0:01:24]} 20. exd5 {[%clk 0:00:43]}  Bf5 {[%clk 0:01:20]} 21. Rad1 {[%clk 0:00:32]}  Rad8 {[%clk 0:01:19]} 22. Kh1 {[%clk 0:00:29]}  h5 {[%clk 0:01:14]} 23. Nb5 {[%clk 0:00:25]}  Qc5 {[%clk 0:01:12]} 24. c3 {[%clk 0:00:23]}  Kg7 {[%clk 0:01:07]} 25. Nd4 {[%clk 0:00:23]}  Bd7 {[%clk 0:01:03]} 26. Nf3 {[%clk 0:00:20]}  Bf6 {[%clk 0:01:01]} 27. Rxe8 {[%clk 0:00:20]}  Rxe8 {[%clk 0:01:01]} 28. Re1 {[%clk 0:00:21]}  Rxe1+ {[%clk 0:00:56]} 29. Qxe1 {[%clk 0:00:22]}  b5 {[%clk 0:00:54]} 30. axb5 {[%clk 0:00:19]}  Qxb5 {[%clk 0:00:54]} 31. Qd1 {[%clk 0:00:19]}  a5 {[%clk 0:00:52]} 32. Nd4 {[%clk 0:00:06]}  Qb6 {[%clk 0:00:46]} 33. Ba4 {[%clk 0:00:06]}  Bxa4 {[%clk 0:00:44]} 34. Qxa4 {[%clk 0:00:07]}  Qxb2 {[%clk 0:00:43]} 35. Qxa5 {[%clk 0:00:01]}  Qc1+ {[%clk 0:00:42]} 36. Kh2 {[%clk 0:00:01]}  Be5+ {[%clk 0:00:42]} 37. g3 {[%clk 0:00:01]}  Qd2+ {[%clk 0:00:42]} 38. Kg1 {[%clk 0:00:02]}  Bxd4+ {[%clk 0:00:42]} 39. cxd4 {[%clk 0:00:00]}  Qxa5 {[%clk 0:00:42]} 0-1


[Site "https://www.chess.com"]

[Event "Titled Tuesday Blitz August 1 Late 2023"]
[White "Shapiro, Viktor"]
[Black "Mushini Ajay"]
[WhiteFideId "4175700"]
[BlackFideId "35066188"]
[WhiteElo "2549"]
[BlackElo "2416"]
[Result "1-0"]
[Round "11"]
[TimeControl "180+1"]
[Date "2023.08.01"]
[WhiteClock "0:00:29"]
[BlackClock "0:00:00"]
[Board "48"]

1. c4 {[%clk 0:03:00]}  b6 {[%clk 0:02:53]} 2. Nf3 {[%clk 0:03:00]}  Bb7 {[%clk 0:02:54]} 3. Nc3 {[%clk 0:03:00]}  e6 {[%clk 0:02:54]} 4. g3 {[%clk 0:02:59]}  f5 {[%clk 0:02:53]} 5. Bg2 {[%clk 0:03:00]}  Nf6 {[%clk 0:02:53]} 6. O-O {[%clk 0:03:00]}  Be7 {[%clk 0:02:53]} 7. d3 {[%clk 0:03:00]}  O-O {[%clk 0:02:53]} 8. e4 {[%clk 0:03:01]}  fxe4 {[%clk 0:02:53]} 9. Ng5 {[%clk 0:03:00]}  Na6 {[%clk 0:02:38]} 10. Ngxe4 {[%clk 0:02:58]}  Nxe4 {[%clk 0:02:36]} 11. Nxe4 {[%clk 0:02:58]}  Rb8 {[%clk 0:02:25]} 12. d4 {[%clk 0:02:50]}  d5 {[%clk 0:02:08]} 13. Nc3 {[%clk 0:02:50]}  dxc4 {[%clk 0:02:06]} 14. Bxb7 {[%clk 0:02:49]}  Rxb7 {[%clk 0:02:07]} 15. Qe2 {[%clk 0:02:48]}  Qd7 {[%clk 0:01:59]} 16. Qxc4 {[%clk 0:02:46]}  Nb4 {[%clk 0:01:46]} 17. Re1 {[%clk 0:02:32]}  Nd5 {[%clk 0:01:33]} 18. Bd2 {[%clk 0:02:22]}  c5 {[%clk 0:01:22]} 19. dxc5 {[%clk 0:01:58]}  bxc5 {[%clk 0:00:49]} 20. b3 {[%clk 0:01:53]}  Rb4 {[%clk 0:00:37]} 21. Qe2 {[%clk 0:01:48]}  Bf6 {[%clk 0:00:37]} 22. Ne4 {[%clk 0:01:23]}  Rxe4 {[%clk 0:00:20]} 23. Qxe4 {[%clk 0:01:23]}  Bd4 {[%clk 0:00:18]} 24. Rf1 {[%clk 0:01:02]}  Nf6 {[%clk 0:00:15]} 25. Qe2 {[%clk 0:00:58]}  e5 {[%clk 0:00:15]} 26. Rad1 {[%clk 0:00:57]}  Ng4 {[%clk 0:00:15]} 27. Be3 {[%clk 0:00:55]}  Qf5 {[%clk 0:00:15]} 28. h3 {[%clk 0:00:46]}  Nf6 {[%clk 0:00:08]} 29. Bxd4 {[%clk 0:00:44]}  cxd4 {[%clk 0:00:09]} 30. Kg2 {[%clk 0:00:42]}  Re8 {[%clk 0:00:08]} 31. Rfe1 {[%clk 0:00:39]}  Qc8 {[%clk 0:00:05]} 32. Qc4+ {[%clk 0:00:36]}  Qxc4 {[%clk 0:00:04]} 33. bxc4 {[%clk 0:00:36]}  Rf8 {[%clk 0:00:04]} 34. Rxe5 {[%clk 0:00:36]}  Kf7 {[%clk 0:00:05]} 35. Rxd4 {[%clk 0:00:35]}  Rc8 {[%clk 0:00:03]} 36. g4 {[%clk 0:00:32]}  h6 {[%clk 0:00:02]} 37. f4 {[%clk 0:00:32]}  Ne8 {[%clk 0:00:02]} 38. Rd7+ {[%clk 0:00:32]}  Kf8 {[%clk 0:00:02]} 39. Rxa7 {[%clk 0:00:29]}  Rc5 {[%clk 0:00:00]} 40. Rxc5 {[%clk 0:00:29]} 1-0


[Site "https://www.chess.com"]

[Event "Titled Tuesday Blitz August 1 Late 2023"]
[White "Nikologorsky, Matfei"]
[Black "Janaszak, Dawid"]
[WhiteFideId "24102474"]
[BlackFideId "1119206"]
[WhiteElo "2388"]
[BlackElo "2530"]
[Result "1/2-1/2"]
[Round "11"]
[TimeControl "180+1"]
[Date "2023.08.01"]
[WhiteClock "0:00:08"]
[BlackClock "0:00:55"]
[Board "49"]

1. e4 {[%clk 0:03:00]}  e5 {[%clk 0:02:58]} 2. Nf3 {[%clk 0:03:00]}  Nc6 {[%clk 0:02:58]} 3. Bb5 {[%clk 0:03:00]}  f5 {[%clk 0:02:56]} 4. Nc3 {[%clk 0:02:57]}  fxe4 {[%clk 0:02:55]} 5. Nxe4 {[%clk 0:02:57]}  Nf6 {[%clk 0:02:56]} 6. Nxf6+ {[%clk 0:02:57]}  Qxf6 {[%clk 0:02:56]} 7. Qe2 {[%clk 0:02:50]}  Be7 {[%clk 0:02:57]} 8. Bxc6 {[%clk 0:02:28]}  bxc6 {[%clk 0:02:56]} 9. Nxe5 {[%clk 0:02:26]}  O-O {[%clk 0:02:54]} 10. O-O {[%clk 0:02:20]}  d6 {[%clk 0:02:52]} 11. Nxc6 {[%clk 0:02:08]}  Re8 {[%clk 0:02:52]} 12. Nxe7+ {[%clk 0:02:08]}  Rxe7 {[%clk 0:02:52]} 13. Qc4+ {[%clk 0:02:04]}  Kh8 {[%clk 0:02:51]} 14. Qc3 {[%clk 0:01:56]}  Qg6 {[%clk 0:02:49]} 15. Qg3 {[%clk 0:01:56]}  Qxc2 {[%clk 0:02:48]} 16. d4 {[%clk 0:01:52]}  Ba6 {[%clk 0:02:46]} 17. Bg5 {[%clk 0:01:45]}  Re2 {[%clk 0:02:36]} 18. Rac1 {[%clk 0:01:39]}  Qxb2 {[%clk 0:02:36]} 19. Rxc7 {[%clk 0:01:33]}  Rg8 {[%clk 0:02:21]} 20. Qh4 {[%clk 0:01:03]}  Re6 {[%clk 0:02:06]} 21. Rfc1 {[%clk 0:00:53]}  Rg6 {[%clk 0:02:03]} 22. h3 {[%clk 0:00:44]}  Qxa2 {[%clk 0:01:56]} 23. Rxa7 {[%clk 0:00:40]}  Qd5 {[%clk 0:01:50]} 24. Rxa6 {[%clk 0:00:30]}  Rxg5 {[%clk 0:01:49]} 25. g3 {[%clk 0:00:26]}  h6 {[%clk 0:01:42]} 26. Rac6 {[%clk 0:00:23]}  Rf8 {[%clk 0:01:38]} 27. Rc8 {[%clk 0:00:21]}  Rf5 {[%clk 0:01:38]} 28. Rxf8+ {[%clk 0:00:21]}  Rxf8 {[%clk 0:01:39]} 29. Qe7 {[%clk 0:00:19]}  Qf3 {[%clk 0:01:38]} 30. Qe3 {[%clk 0:00:19]}  Qf5 {[%clk 0:01:38]} 31. Kg2 {[%clk 0:00:18]}  Qd7 {[%clk 0:01:34]} 32. Re1 {[%clk 0:00:18]}  Qb7+ {[%clk 0:01:32]} 33. Qe4 {[%clk 0:00:19]}  Qf7 {[%clk 0:01:32]} 34. d5 {[%clk 0:00:18]}  Qxf2+ {[%clk 0:01:32]} 35. Kh1 {[%clk 0:00:18]}  Qxg3 {[%clk 0:01:33]} 36. Qe3 {[%clk 0:00:15]}  Qh4 {[%clk 0:01:23]} 37. Rg1 {[%clk 0:00:11]}  Qf6 {[%clk 0:01:15]} 38. Kg2 {[%clk 0:00:09]}  Qf7 {[%clk 0:01:13]} 39. Re1 {[%clk 0:00:07]}  Qxd5+ {[%clk 0:01:12]} 40. Kh2 {[%clk 0:00:07]}  Qf5 {[%clk 0:01:10]} 41. Rg1 {[%clk 0:00:07]}  Qf6 {[%clk 0:01:10]} 42. Rg2 {[%clk 0:00:07]}  d5 {[%clk 0:01:10]} 43. Rd2 {[%clk 0:00:07]}  Qd6+ {[%clk 0:01:08]} 44. Qg3 {[%clk 0:00:07]}  Qxg3+ {[%clk 0:01:08]} 45. Kxg3 {[%clk 0:00:07]}  Rd8 {[%clk 0:01:08]} 46. Kf4 {[%clk 0:00:08]}  d4 {[%clk 0:01:08]} 47. Ke4 {[%clk 0:00:09]}  Kh7 {[%clk 0:01:09]} 48. Rxd4 {[%clk 0:00:09]}  Rxd4+ {[%clk 0:01:08]} 49. Kxd4 {[%clk 0:00:10]}  Kg6 {[%clk 0:01:09]} 50. Ke4 {[%clk 0:00:10]}  Kg5 {[%clk 0:01:09]} 51. Kf3 {[%clk 0:00:11]}  h5 {[%clk 0:01:05]} 52. Kg3 {[%clk 0:00:10]}  h4+ {[%clk 0:01:05]} 53. Kf3 {[%clk 0:00:11]}  Kf5 {[%clk 0:01:06]} 54. Ke3 {[%clk 0:00:11]}  g6 {[%clk 0:00:56]} 55. Kf3 {[%clk 0:00:10]}  Kg5 {[%clk 0:00:52]} 56. Ke4 {[%clk 0:00:09]}  Kh5 {[%clk 0:00:52]} 57. Kf4 {[%clk 0:00:08]}  Kh6 {[%clk 0:00:52]} 58. Kg4 {[%clk 0:00:08]}  g5 {[%clk 0:00:52]} 59. Kf3 {[%clk 0:00:06]}  Kg6 {[%clk 0:00:52]} 60. Kg4 {[%clk 0:00:06]}  Kf6 {[%clk 0:00:53]} 61. Kf3 {[%clk 0:00:06]}  Kf5 {[%clk 0:00:53]} 62. Ke3 {[%clk 0:00:06]}  Ke5 {[%clk 0:00:54]} 63. Kf3 {[%clk 0:00:07]}  Kf5 {[%clk 0:00:54]} 64. Ke3 {[%clk 0:00:07]}  Kg6 {[%clk 0:00:55]} 65. Kf3 {[%clk 0:00:08]}  Kf5 {[%clk 0:00:55]} 1/2-1/2


[Site "https://www.chess.com"]

[Event "Titled Tuesday Blitz August 1 Late 2023"]
[White "Fiorito, Francisco"]
[Black "Bueno, Alfeu Junior Varela"]
[WhiteFideId "180165"]
[BlackFideId "2108879"]
[WhiteElo "2528"]
[BlackElo "2406"]
[Result "1-0"]
[Round "11"]
[TimeControl "180+1"]
[Date "2023.08.01"]
[WhiteClock "0:00:35"]
[BlackClock "0:00:00"]
[Board "50"]

1. a3 {[%clk 0:03:00]}  e5 {[%clk 0:02:56]} 2. b4 {[%clk 0:02:58]}  a5 {[%clk 0:02:51]} 3. b5 {[%clk 0:02:53]}  d5 {[%clk 0:02:51]} 4. Bb2 {[%clk 0:02:53]}  Bd6 {[%clk 0:02:51]} 5. Nf3 {[%clk 0:02:50]}  Qe7 {[%clk 0:02:50]} 6. g3 {[%clk 0:02:48]}  f5 {[%clk 0:02:38]} 7. Bg2 {[%clk 0:02:46]}  Nf6 {[%clk 0:02:37]} 8. d3 {[%clk 0:02:44]}  O-O {[%clk 0:02:31]} 9. O-O {[%clk 0:02:43]}  f4 {[%clk 0:02:22]} 10. gxf4 {[%clk 0:01:29]}  e4 {[%clk 0:02:08]} 11. Ne5 {[%clk 0:01:28]}  Nbd7 {[%clk 0:02:00]} 12. d4 {[%clk 0:01:23]}  Kh8 {[%clk 0:01:00]} 13. e3 {[%clk 0:01:21]}  Rg8 {[%clk 0:00:58]} 14. h4 {[%clk 0:01:11]}  Nf8 {[%clk 0:00:55]} 15. f3 {[%clk 0:01:07]}  Bf5 {[%clk 0:00:46]} 16. Nd2 {[%clk 0:01:04]}  Rd8 {[%clk 0:00:30]} 17. c4 {[%clk 0:01:01]}  exf3 {[%clk 0:00:20]} 18. Qxf3 {[%clk 0:00:58]}  Be4 {[%clk 0:00:17]} 19. Nxe4 {[%clk 0:00:57]}  dxe4 {[%clk 0:00:18]} 20. Qg3 {[%clk 0:00:55]}  Bxe5 {[%clk 0:00:14]} 21. fxe5 {[%clk 0:00:54]}  Nh5 {[%clk 0:00:14]} 22. Qg4 {[%clk 0:00:53]}  Qe8 {[%clk 0:00:08]} 23. d5 {[%clk 0:00:53]}  Qg6 {[%clk 0:00:04]} 24. Qxg6 {[%clk 0:00:47]}  Nxg6 {[%clk 0:00:05]} 25. Bxe4 {[%clk 0:00:47]}  Nxh4 {[%clk 0:00:05]} 26. Rf7 {[%clk 0:00:38]}  Rde8 {[%clk 0:00:04]} 27. e6 {[%clk 0:00:38]}  Ng6 {[%clk 0:00:02]} 28. Rxc7 {[%clk 0:00:35]}  Nf6 {[%clk 0:00:02]} 29. Bxg6 {[%clk 0:00:34]}  hxg6 {[%clk 0:00:00]} 30. Kg2 {[%clk 0:00:35]} 1-0


[Site "https://www.chess.com"]

[Event "Titled Tuesday Blitz August 1 Late 2023"]
[White "Hacker, Jonas"]
[Black "Hirneise, Jens"]
[WhiteFideId "1270968"]
[BlackFideId "24614734"]
[WhiteElo "2386"]
[BlackElo "2476"]
[Result "0-1"]
[Round "11"]
[TimeControl "180+1"]
[Date "2023.08.01"]
[WhiteClock "0:00:57"]
[BlackClock "0:01:35"]
[Board "52"]

1. c4 {[%clk 0:02:55]}  e6 {[%clk 0:02:57]} 2. Nf3 {[%clk 0:02:54]}  d5 {[%clk 0:02:57]} 3. e3 {[%clk 0:02:54]}  h6 {[%clk 0:02:56]} 4. Nc3 {[%clk 0:02:52]}  Nf6 {[%clk 0:02:57]} 5. b3 {[%clk 0:02:50]}  Be7 {[%clk 0:02:57]} 6. Bb2 {[%clk 0:02:50]}  O-O {[%clk 0:02:58]} 7. d4 {[%clk 0:02:29]}  b6 {[%clk 0:02:57]} 8. cxd5 {[%clk 0:02:27]}  exd5 {[%clk 0:02:57]} 9. Bd3 {[%clk 0:02:26]}  c5 {[%clk 0:02:52]} 10. Ne5 {[%clk 0:02:20]}  Bb7 {[%clk 0:02:49]} 11. O-O {[%clk 0:02:20]}  Nbd7 {[%clk 0:02:45]} 12. Nxd7 {[%clk 0:01:58]}  Qxd7 {[%clk 0:02:46]} 13. dxc5 {[%clk 0:01:57]}  bxc5 {[%clk 0:02:45]} 14. Na4 {[%clk 0:01:56]}  Rac8 {[%clk 0:02:42]} 15. Rc1 {[%clk 0:01:53]}  Qd6 {[%clk 0:02:33]} 16. Be2 {[%clk 0:01:48]}  Rfd8 {[%clk 0:02:30]} 17. Bf3 {[%clk 0:01:48]}  Ba8 {[%clk 0:02:21]} 18. Ba3 {[%clk 0:01:37]}  Nd7 {[%clk 0:02:19]} 19. Bg4 {[%clk 0:01:26]}  Qa6 {[%clk 0:01:56]} 20. Bxd7 {[%clk 0:01:15]}  Rxd7 {[%clk 0:01:55]} 21. Bxc5 {[%clk 0:01:10]}  Rdc7 {[%clk 0:01:44]} 22. Ba3 {[%clk 0:00:57]}  Bxa3 {[%clk 0:01:35]} 0-1


[Site "https://www.chess.com"]

[Event "Titled Tuesday Blitz August 1 Late 2023"]
[White "Kanyamarala, Tarun"]
[Black "Sun, Rick"]
[WhiteFideId "45004714"]
[BlackFideId "30909481"]
[WhiteElo "2483"]
[BlackElo "2599"]
[Result "1-0"]
[Round "11"]
[TimeControl "180+1"]
[Date "2023.08.01"]
[WhiteClock "0:01:33"]
[BlackClock "0:00:06"]
[Board "53"]

1. d4 {[%clk 0:03:00]}  Nf6 {[%clk 0:02:59]} 2. Nf3 {[%clk 0:02:58]}  g6 {[%clk 0:02:59]} 3. h4 {[%clk 0:02:54]}  Bg7 {[%clk 0:02:57]} 4. Nc3 {[%clk 0:02:53]}  c5 {[%clk 0:02:50]} 5. d5 {[%clk 0:02:52]}  b5 {[%clk 0:02:33]} 6. Nxb5 {[%clk 0:02:50]}  Qa5+ {[%clk 0:02:18]} 7. Nc3 {[%clk 0:02:49]}  Ne4 {[%clk 0:02:09]} 8. Bd2 {[%clk 0:02:48]}  Nxc3 {[%clk 0:02:04]} 9. bxc3 {[%clk 0:02:48]}  Bxc3 {[%clk 0:02:04]} 10. e4 {[%clk 0:02:48]}  d6 {[%clk 0:01:54]} 11. Bb5+ {[%clk 0:02:46]}  Kf8 {[%clk 0:01:50]} 12. a4 {[%clk 0:02:42]}  Bg4 {[%clk 0:01:47]} 13. Ra3 {[%clk 0:02:25]}  Bxd2+ {[%clk 0:01:30]} 14. Qxd2 {[%clk 0:02:25]}  Qxd2+ {[%clk 0:01:29]} 15. Kxd2 {[%clk 0:02:25]}  a6 {[%clk 0:01:27]} 16. Be2 {[%clk 0:02:19]}  Nd7 {[%clk 0:01:22]} 17. Rb1 {[%clk 0:02:19]}  Bxf3 {[%clk 0:01:18]} 18. gxf3 {[%clk 0:02:18]}  f5 {[%clk 0:00:53]} 19. Rb7 {[%clk 0:02:12]}  Nf6 {[%clk 0:00:43]} 20. exf5 {[%clk 0:01:57]}  Nxd5 {[%clk 0:00:39]} 21. Bc4 {[%clk 0:01:52]}  Nf6 {[%clk 0:00:31]} 22. Re3 {[%clk 0:01:50]}  Re8 {[%clk 0:00:25]} 23. Bxa6 {[%clk 0:01:48]}  gxf5 {[%clk 0:00:22]} 24. Bb5 {[%clk 0:01:47]}  Nd5 {[%clk 0:00:20]} 25. Bxe8 {[%clk 0:01:44]}  Nxe3 {[%clk 0:00:19]} 26. fxe3 {[%clk 0:01:42]}  Rg8 {[%clk 0:00:16]} 27. Bd7 {[%clk 0:01:40]}  Rg2+ {[%clk 0:00:15]} 28. Kd3 {[%clk 0:01:40]}  Rf2 {[%clk 0:00:14]} 29. Bc6 {[%clk 0:01:35]}  e5 {[%clk 0:00:07]} 30. a5 {[%clk 0:01:34]}  c4+ {[%clk 0:00:08]} 31. Kc3 {[%clk 0:01:34]}  f4 {[%clk 0:00:06]} 32. exf4 {[%clk 0:01:33]} 1-0


[Site "https://www.chess.com"]

[Event "Titled Tuesday Blitz August 1 Late 2023"]
[White "Santos Flores, Alberto"]
[Black "Sanhueza, Cristian"]
[WhiteFideId "3601234"]
[BlackFideId "116815"]
[WhiteElo "2549"]
[BlackElo "2484"]
[Result "1-0"]
[Round "11"]
[TimeControl "180+1"]
[Date "2023.08.01"]
[WhiteClock "0:00:43"]
[BlackClock "0:00:02"]
[Board "54"]

1. e4 {[%clk 0:03:00]}  c5 {[%clk 0:02:59]} 2. Nf3 {[%clk 0:03:01]}  d6 {[%clk 0:02:59]} 3. Bb5+ {[%clk 0:03:00]}  Bd7 {[%clk 0:02:57]} 4. Bxd7+ {[%clk 0:02:59]}  Qxd7 {[%clk 0:02:58]} 5. c4 {[%clk 0:03:00]}  Nf6 {[%clk 0:02:56]} 6. Nc3 {[%clk 0:03:00]}  Nc6 {[%clk 0:02:54]} 7. d4 {[%clk 0:03:00]}  cxd4 {[%clk 0:02:53]} 8. Nxd4 {[%clk 0:03:01]}  g6 {[%clk 0:02:53]} 9. f3 {[%clk 0:02:59]}  Bg7 {[%clk 0:02:52]} 10. Be3 {[%clk 0:03:00]}  O-O {[%clk 0:02:50]} 11. b3 {[%clk 0:02:58]}  a5 {[%clk 0:02:41]} 12. O-O {[%clk 0:02:56]}  Rfc8 {[%clk 0:02:37]} 13. Rc1 {[%clk 0:02:48]}  Ne5 {[%clk 0:02:33]} 14. Qd2 {[%clk 0:02:43]}  a4 {[%clk 0:02:32]} 15. h3 {[%clk 0:02:17]}  a3 {[%clk 0:02:16]} 16. Nd5 {[%clk 0:02:15]}  Nxd5 {[%clk 0:02:14]} 17. cxd5 {[%clk 0:02:15]}  Qd8 {[%clk 0:02:08]} 18. Rxc8 {[%clk 0:02:02]}  Rxc8 {[%clk 0:01:43]} 19. Qb4 {[%clk 0:01:50]}  b6 {[%clk 0:01:06]} 20. Qxa3 {[%clk 0:01:41]}  Rc3 {[%clk 0:01:02]} 21. Bf2 {[%clk 0:01:16]}  Nd3 {[%clk 0:00:29]} 22. Nc6 {[%clk 0:01:15]}  Qc7 {[%clk 0:00:28]} 23. Qa8+ {[%clk 0:00:59]}  Bf8 {[%clk 0:00:25]} 24. Be3 {[%clk 0:00:57]}  Ne5 {[%clk 0:00:16]} 25. Bh6 {[%clk 0:00:49]}  Nd7 {[%clk 0:00:11]} 26. Nxe7+ {[%clk 0:00:43]}  Kh8 {[%clk 0:00:02]} 27. Bxf8 {[%clk 0:00:43]} 1-0


[Site "https://www.chess.com"]

[Event "Titled Tuesday Blitz August 1 Late 2023"]
[White "Salazar Farias, Luis German"]
[Black "Ambartsumova, Karina"]
[WhiteFideId "3902170"]
[BlackFideId "4166299"]
[WhiteElo "2475"]
[BlackElo "2546"]
[Result "0-1"]
[Round "11"]
[TimeControl "180+1"]
[Date "2023.08.01"]
[WhiteClock "0:00:00"]
[BlackClock "0:01:12"]
[Board "55"]

1. d4 {[%clk 0:02:53]}  Nf6 {[%clk 0:02:59]} 2. c4 {[%clk 0:02:53]}  d6 {[%clk 0:02:59]} 3. Nc3 {[%clk 0:02:43]}  e5 {[%clk 0:02:59]} 4. Nf3 {[%clk 0:02:38]}  e4 {[%clk 0:02:59]} 5. Ng5 {[%clk 0:02:22]}  Qe7 {[%clk 0:02:59]} 6. Qc2 {[%clk 0:02:07]}  Bf5 {[%clk 0:02:59]} 7. f3 {[%clk 0:02:02]}  c6 {[%clk 0:02:45]} 8. Ngxe4 {[%clk 0:01:42]}  Nxe4 {[%clk 0:02:45]} 9. fxe4 {[%clk 0:01:40]}  Bg6 {[%clk 0:02:41]} 10. e3 {[%clk 0:01:39]}  Nd7 {[%clk 0:02:39]} 11. Bd3 {[%clk 0:01:37]}  Qh4+ {[%clk 0:02:31]} 12. Qf2 {[%clk 0:01:24]}  Qe7 {[%clk 0:02:29]} 13. O-O {[%clk 0:01:12]}  Nf6 {[%clk 0:02:30]} 14. b3 {[%clk 0:00:47]}  O-O-O {[%clk 0:02:29]} 15. Bd2 {[%clk 0:00:42]}  Kb8 {[%clk 0:02:27]} 16. Qf4 {[%clk 0:00:32]}  Ka8 {[%clk 0:02:18]} 17. Be1 {[%clk 0:00:29]}  Re8 {[%clk 0:02:10]} 18. Bh4 {[%clk 0:00:27]}  Qd7 {[%clk 0:02:03]} 19. Bxf6 {[%clk 0:00:20]}  gxf6 {[%clk 0:02:04]} 20. Qxf6 {[%clk 0:00:21]}  Bh6 {[%clk 0:02:02]} 21. Rae1 {[%clk 0:00:19]}  Rhg8 {[%clk 0:02:02]} 22. Kh1 {[%clk 0:00:19]}  Qg4 {[%clk 0:01:49]} 23. Qf3 {[%clk 0:00:19]}  Qh4 {[%clk 0:01:47]} 24. Qf2 {[%clk 0:00:16]}  Qe7 {[%clk 0:01:42]} 25. Qf3 {[%clk 0:00:15]}  Bg5 {[%clk 0:01:38]} 26. Bb1 {[%clk 0:00:14]}  Bh4 {[%clk 0:01:30]} 27. Re2 {[%clk 0:00:13]}  Qg5 {[%clk 0:01:23]} 28. Qf4 {[%clk 0:00:12]}  Qh5 {[%clk 0:01:21]} 29. b4 {[%clk 0:00:06]}  Bxe4 {[%clk 0:01:14]} 30. Bxe4 {[%clk 0:00:05]}  Bg3 {[%clk 0:01:14]} 31. Qxg3 {[%clk 0:00:03]}  Rxg3 {[%clk 0:01:14]} 32. Rf5 {[%clk 0:00:00]}  Qh6 {[%clk 0:01:12]} 0-1


[Site "https://www.chess.com"]